[Event "Titled Tuesday Blitz December 06 Late 2022"]
[White "Korobov, Anton"]
[Black "Melkumyan, Hrant"]
[WhiteFideId "14105730"]
[BlackFideId "13302485"]
[WhiteElo "2635"]
[BlackElo "2604"]
[Result "0-1"]
[Round "08"]
[TimeControl "180+1"]
[Date "2022.12.06"]
[WhiteClock "0:00:10"]
[BlackClock "0:00:17"]

1. d4 {[%clk 0:02:57]}  Nf6 {[%clk 0:03:00]} 2. c4 {[%clk 0:02:56]}  g6 {[%clk 0:03:01]} 3. Nc3 {[%clk 0:02:56]}  Bg7 {[%clk 0:03:01]} 4. e4 {[%clk 0:02:56]}  d6 {[%clk 0:03:02]} 5. Be2 {[%clk 0:02:56]}  e5 {[%clk 0:03:02]} 6. Nf3 {[%clk 0:02:54]}  exd4 {[%clk 0:02:54]} 7. Nxd4 {[%clk 0:02:54]}  Nc6 {[%clk 0:02:54]} 8. Be3 {[%clk 0:02:49]}  O-O {[%clk 0:02:53]} 9. O-O {[%clk 0:02:48]}  Re8 {[%clk 0:02:47]} 10. f3 {[%clk 0:02:47]}  Nxd4 {[%clk 0:02:40]} 11. Bxd4 {[%clk 0:02:47]}  Be6 {[%clk 0:02:40]} 12. Qd2 {[%clk 0:02:45]}  c6 {[%clk 0:02:36]} 13. Rad1 {[%clk 0:02:44]}  a6 {[%clk 0:02:35]} 14. a3 {[%clk 0:02:30]}  b5 {[%clk 0:02:31]} 15. c5 {[%clk 0:02:24]}  dxc5 {[%clk 0:02:22]} 16. Bxc5 {[%clk 0:02:25]}  Qxd2 {[%clk 0:02:20]} 17. Rxd2 {[%clk 0:02:24]}  Nd7 {[%clk 0:02:21]} 18. Bf2 {[%clk 0:02:18]}  Ne5 {[%clk 0:02:16]} 19. Rfd1 {[%clk 0:01:38]}  Bb3 {[%clk 0:02:07]} 20. Re1 {[%clk 0:01:31]}  Bc4 {[%clk 0:02:07]} 21. f4 {[%clk 0:01:20]}  Bxe2 {[%clk 0:02:06]} 22. Rexe2 {[%clk 0:01:13]}  Nc4 {[%clk 0:02:04]} 23. Rc2 {[%clk 0:00:59]}  Rad8 {[%clk 0:02:02]} 24. e5 {[%clk 0:00:58]}  f6 {[%clk 0:01:57]} 25. exf6 {[%clk 0:00:48]}  Rxe2 {[%clk 0:01:56]} 26. Rxe2 {[%clk 0:00:48]}  Bxf6 {[%clk 0:01:57]} 27. g4 {[%clk 0:00:47]}  Nxb2 {[%clk 0:01:32]} 28. Ne4 {[%clk 0:00:47]}  Bg7 {[%clk 0:01:30]} 29. Nc5 {[%clk 0:00:46]}  Nd1 {[%clk 0:01:21]} 30. Ne6 {[%clk 0:00:41]}  Re8 {[%clk 0:01:18]} 31. f5 {[%clk 0:00:38]}  Nxf2 {[%clk 0:01:10]} 32. Kxf2 {[%clk 0:00:38]}  gxf5 {[%clk 0:01:02]} 33. gxf5 {[%clk 0:00:38]}  Bf8 {[%clk 0:00:52]} 34. Kf3 {[%clk 0:00:29]}  Bxa3 {[%clk 0:00:49]} 35. Rg2+ {[%clk 0:00:29]}  Kf7 {[%clk 0:00:48]} 36. Ke4 {[%clk 0:00:20]}  Kf6 {[%clk 0:00:39]} 37. Rg3 {[%clk 0:00:18]}  Bf8 {[%clk 0:00:40]} 38. Rh3 {[%clk 0:00:16]}  h6 {[%clk 0:00:34]} 39. Rg3 {[%clk 0:00:16]}  a5 {[%clk 0:00:33]} 40. Rg6+ {[%clk 0:00:16]}  Kf7 {[%clk 0:00:34]} 41. Kf4 {[%clk 0:00:14]}  a4 {[%clk 0:00:33]} 42. Nxf8 {[%clk 0:00:14]}  Rxf8 {[%clk 0:00:30]} 43. Rxc6 {[%clk 0:00:13]}  Ra8 {[%clk 0:00:30]} 44. Rc7+ {[%clk 0:00:14]}  Kg8 {[%clk 0:00:26]} 45. f6 {[%clk 0:00:14]}  a3 {[%clk 0:00:24]} 46. Kf5 {[%clk 0:00:15]}  a2 {[%clk 0:00:19]} 47. Rg7+ {[%clk 0:00:14]}  Kf8 {[%clk 0:00:18]} 48. Kg6 {[%clk 0:00:10]}  a1=Q {[%clk 0:00:17]} 49. Rf7+ {[%clk 0:00:10]}  Ke8 {[%clk 0:00:17]} 0-1


[Site "https://www.chess.com"]

[Event "Titled Tuesday Blitz December 06 Late 2022"]
[White "Liu, Kelsey"]
[Black "Floresvillar Gonzalez, Luis Migu"]
[WhiteFideId "30944481"]
[BlackFideId "5100542"]
[WhiteElo "2255"]
[BlackElo "2040"]
[Result "1-0"]
[Round "08"]
[TimeControl "180+1"]
[Date "2022.12.07"]
[WhiteClock "0:01:30"]
[BlackClock "0:02:13"]

1. e4 {[%clk 0:03:00]}  e6 {[%clk 0:02:59]} 2. d4 {[%clk 0:03:00]}  d5 {[%clk 0:02:59]} 3. Nc3 {[%clk 0:03:00]}  Nf6 {[%clk 0:02:58]} 4. Bg5 {[%clk 0:02:57]}  Be7 {[%clk 0:02:57]} 5. e5 {[%clk 0:02:57]}  Nfd7 {[%clk 0:02:57]} 6. h4 {[%clk 0:02:58]}  h6 {[%clk 0:02:54]} 7. Be3 {[%clk 0:02:38]}  a6 {[%clk 0:02:53]} 8. Qg4 {[%clk 0:02:27]}  Bf8 {[%clk 0:02:45]} 9. f4 {[%clk 0:02:20]}  c5 {[%clk 0:02:39]} 10. Nf3 {[%clk 0:02:19]}  cxd4 {[%clk 0:02:36]} 11. Nxd4 {[%clk 0:02:13]}  Nc6 {[%clk 0:02:37]} 12. Nxe6 {[%clk 0:01:41]}  fxe6 {[%clk 0:02:35]} 13. Qg6+ {[%clk 0:01:41]}  Ke7 {[%clk 0:02:24]} 14. Be2 {[%clk 0:01:42]}  Qe8 {[%clk 0:02:16]} 15. Nxd5+ {[%clk 0:01:41]}  exd5 {[%clk 0:02:15]} 16. Qd6+ {[%clk 0:01:30]}  Kd8 {[%clk 0:02:13]} 17. Bb6# {[%clk 0:01:30]} 1-0


[Site "https://www.chess.com"]

[Event "Titled Tuesday Blitz December 06 Late 2022"]
[White "Makridis, Dimitrios"]
[Black "Adla, Diego"]
[WhiteFideId "25864475"]
[BlackFideId "100072"]
[WhiteElo "2272"]
[BlackElo "2377"]
[Result "0-1"]
[Round "08"]
[TimeControl "180+1"]
[Date "2022.12.06"]
[WhiteClock "0:00:09"]
[BlackClock "0:00:29"]

1. e4 {[%clk 0:03:00]}  e5 {[%clk 0:02:59]} 2. Nf3 {[%clk 0:02:48]}  Nc6 {[%clk 0:02:59]} 3. Bb5 {[%clk 0:02:46]}  a6 {[%clk 0:02:56]} 4. Bxc6 {[%clk 0:02:43]}  dxc6 {[%clk 0:02:56]} 5. O-O {[%clk 0:02:44]}  Bg4 {[%clk 0:02:54]} 6. h3 {[%clk 0:02:44]}  h5 {[%clk 0:02:53]} 7. d3 {[%clk 0:02:44]}  Qf6 {[%clk 0:02:49]} 8. Nbd2 {[%clk 0:02:43]}  g5 {[%clk 0:02:46]} 9. Nc4 {[%clk 0:02:37]}  Bxf3 {[%clk 0:02:40]} 10. Qxf3 {[%clk 0:02:36]}  Qxf3 {[%clk 0:02:40]} 11. gxf3 {[%clk 0:02:37]}  f6 {[%clk 0:02:40]} 12. c3 {[%clk 0:02:37]}  O-O-O {[%clk 0:02:31]} 13. Rd1 {[%clk 0:02:38]}  Rh7 {[%clk 0:02:23]} 14. Be3 {[%clk 0:02:35]}  Rhd7 {[%clk 0:02:22]} 15. d4 {[%clk 0:02:34]}  Bc5 {[%clk 0:02:16]} 16. d5 {[%clk 0:02:03]}  Bxe3 {[%clk 0:02:10]} 17. Nxe3 {[%clk 0:02:02]}  cxd5 {[%clk 0:02:11]} 18. Nxd5 {[%clk 0:01:58]}  Kb8 {[%clk 0:02:11]} 19. Ne3 {[%clk 0:01:57]}  Ne7 {[%clk 0:02:05]} 20. Rxd7 {[%clk 0:01:55]}  Rxd7 {[%clk 0:02:05]} 21. Rd1 {[%clk 0:01:49]}  Rxd1+ {[%clk 0:02:03]} 22. Nxd1 {[%clk 0:01:50]}  Ng6 {[%clk 0:02:04]} 23. Ne3 {[%clk 0:01:48]}  Nf4 {[%clk 0:02:01]} 24. h4 {[%clk 0:01:07]}  Kc8 {[%clk 0:01:51]} 25. hxg5 {[%clk 0:01:02]}  fxg5 {[%clk 0:01:50]} 26. Nc4 {[%clk 0:00:55]}  Nd3 {[%clk 0:01:37]} 27. b3 {[%clk 0:00:47]}  Kd7 {[%clk 0:01:34]} 28. Kg2 {[%clk 0:00:39]}  Ke6 {[%clk 0:01:33]} 29. Nd2 {[%clk 0:00:32]}  Nf4+ {[%clk 0:01:28]} 30. Kh2 {[%clk 0:00:31]}  b5 {[%clk 0:01:27]} 31. b4 {[%clk 0:00:22]}  Ne2 {[%clk 0:01:24]} 32. Nb1 {[%clk 0:00:18]}  Kd6 {[%clk 0:01:23]} 33. Kg2 {[%clk 0:00:17]}  c5 {[%clk 0:01:14]} 34. Kf1 {[%clk 0:00:15]}  Nf4 {[%clk 0:01:12]} 35. Na3 {[%clk 0:00:08]}  Nd3 {[%clk 0:01:06]} 36. Nc2 {[%clk 0:00:08]}  h4 {[%clk 0:00:54]} 37. a3 {[%clk 0:00:03]}  Nb2 {[%clk 0:00:49]} 38. Ne3 {[%clk 0:00:02]}  cxb4 {[%clk 0:00:45]} 39. cxb4 {[%clk 0:00:02]}  Nc4 {[%clk 0:00:43]} 40. Nc2 {[%clk 0:00:03]}  Ke6 {[%clk 0:00:36]} 41. Kg2 {[%clk 0:00:03]}  Kf6 {[%clk 0:00:34]} 42. Kh2 {[%clk 0:00:04]}  Kg6 {[%clk 0:00:34]} 43. Kg2 {[%clk 0:00:04]}  Kh5 {[%clk 0:00:34]} 44. Kh3 {[%clk 0:00:05]}  Nd2 {[%clk 0:00:34]} 45. Kg2 {[%clk 0:00:05]}  g4 {[%clk 0:00:34]} 46. fxg4+ {[%clk 0:00:06]}  Kxg4 {[%clk 0:00:34]} 47. Ne3+ {[%clk 0:00:06]}  Kf4 {[%clk 0:00:35]} 48. Nd5+ {[%clk 0:00:07]}  Kxe4 {[%clk 0:00:33]} 49. Nc7 {[%clk 0:00:08]}  Nc4 {[%clk 0:00:33]} 50. Nxa6 {[%clk 0:00:08]}  Nxa3 {[%clk 0:00:33]} 51. Nc5+ {[%clk 0:00:07]}  Kd5 {[%clk 0:00:33]} 52. Nd7 {[%clk 0:00:07]}  Nc2 {[%clk 0:00:32]} 53. Kh3 {[%clk 0:00:06]}  Nxb4 {[%clk 0:00:32]} 54. Kxh4 {[%clk 0:00:07]}  Nd3 {[%clk 0:00:32]} 55. Kg3 {[%clk 0:00:07]}  b4 {[%clk 0:00:32]} 56. Nb6+ {[%clk 0:00:07]}  Kd4 {[%clk 0:00:32]} 57. Kf3 {[%clk 0:00:07]}  b3 {[%clk 0:00:32]} 58. Na4 {[%clk 0:00:07]}  b2 {[%clk 0:00:32]} 59. Nxb2 {[%clk 0:00:08]}  Nxb2 {[%clk 0:00:32]} 60. Kg4 {[%clk 0:00:08]}  Nd3 {[%clk 0:00:32]} 61. Kf3 {[%clk 0:00:09]}  Nf4 {[%clk 0:00:32]} 62. Kg3 {[%clk 0:00:07]}  Ke4 {[%clk 0:00:32]} 63. Kg4 {[%clk 0:00:07]}  Nd3 {[%clk 0:00:30]} 64. Kg3 {[%clk 0:00:06]}  Kf5 {[%clk 0:00:30]} 65. Kf3 {[%clk 0:00:06]}  Nc5 {[%clk 0:00:29]} 66. Ke3 {[%clk 0:00:06]}  Ne6 {[%clk 0:00:28]} 67. Kf3 {[%clk 0:00:06]}  Ng5+ {[%clk 0:00:28]} 68. Ke3 {[%clk 0:00:07]}  e4 {[%clk 0:00:26]} 69. Ke2 {[%clk 0:00:06]}  Kf4 {[%clk 0:00:27]} 70. Kf1 {[%clk 0:00:07]}  Kf3 {[%clk 0:00:27]} 71. Ke1 {[%clk 0:00:07]}  Nh3 {[%clk 0:00:27]} 72. Kf1 {[%clk 0:00:08]}  Nxf2 {[%clk 0:00:27]} 73. Kg1 {[%clk 0:00:08]}  Nd3 {[%clk 0:00:27]} 74. Kh2 {[%clk 0:00:08]}  Nc5 {[%clk 0:00:27]} 75. Kg1 {[%clk 0:00:08]}  e3 {[%clk 0:00:28]} 76. Kf1 {[%clk 0:00:09]}  e2+ {[%clk 0:00:28]} 77. Ke1 {[%clk 0:00:08]}  Nb7 {[%clk 0:00:28]} 78. Kd2 {[%clk 0:00:09]}  Kf2 {[%clk 0:00:29]} 0-1


[Site "https://www.chess.com"]

[Event "Titled Tuesday Blitz December 06 Late 2022"]
[White "Manukyan, Sargis A."]
[Black "Kovacevic, Radmila"]
[WhiteFideId "13303970"]
[BlackFideId "933171"]
[WhiteElo "2187"]
[BlackElo "2244"]
[Result "1-0"]
[Round "08"]
[TimeControl "180+1"]
[Date "2022.12.07"]
[WhiteClock "0:00:27"]
[BlackClock "0:00:17"]

1. Nf3 {[%clk 0:02:48]}  Nf6 {[%clk 0:02:56]} 2. g3 {[%clk 0:02:47]}  d5 {[%clk 0:02:54]} 3. Bg2 {[%clk 0:02:47]}  h5 {[%clk 0:02:51]} 4. c4 {[%clk 0:02:46]}  dxc4 {[%clk 0:02:46]} 5. Qa4+ {[%clk 0:02:39]}  Nc6 {[%clk 0:02:38]} 6. Qxc4 {[%clk 0:02:37]}  Be6 {[%clk 0:02:24]} 7. Qb5 {[%clk 0:02:31]}  Qd7 {[%clk 0:02:00]} 8. Nc3 {[%clk 0:02:23]}  Nd5 {[%clk 0:01:22]} 9. O-O {[%clk 0:02:08]}  O-O-O {[%clk 0:00:58]} 10. d4 {[%clk 0:01:48]}  h4 {[%clk 0:00:51]} 11. e4 {[%clk 0:01:47]}  a6 {[%clk 0:00:43]} 12. Qe2 {[%clk 0:01:41]}  Nxc3 {[%clk 0:00:30]} 13. bxc3 {[%clk 0:01:41]}  Bg4 {[%clk 0:00:30]} 14. Bf4 {[%clk 0:01:33]}  e5 {[%clk 0:00:28]} 15. dxe5 {[%clk 0:01:27]}  Bc5 {[%clk 0:00:23]} 16. Rad1 {[%clk 0:01:25]}  Qe6 {[%clk 0:00:20]} 17. Be3 {[%clk 0:01:23]}  Be7 {[%clk 0:00:15]} 18. Rxd8+ {[%clk 0:01:18]}  Rxd8 {[%clk 0:00:16]} 19. Bd4 {[%clk 0:00:59]}  g5 {[%clk 0:00:10]} 20. Qe3 {[%clk 0:00:57]}  Bxf3 {[%clk 0:00:10]} 21. Qxf3 {[%clk 0:00:54]}  Nxe5 {[%clk 0:00:10]} 22. Bxe5 {[%clk 0:00:55]}  Qxe5 {[%clk 0:00:10]} 23. Qxf7 {[%clk 0:00:54]}  hxg3 {[%clk 0:00:09]} 24. hxg3 {[%clk 0:00:50]}  Bc5 {[%clk 0:00:09]} 25. Qf5+ {[%clk 0:00:49]}  Qxf5 {[%clk 0:00:10]} 26. exf5 {[%clk 0:00:49]}  Rf8 {[%clk 0:00:10]} 27. Rd1 {[%clk 0:00:47]}  c6 {[%clk 0:00:09]} 28. Kf1 {[%clk 0:00:42]}  g4 {[%clk 0:00:09]} 29. Be4 {[%clk 0:00:40]}  Kc7 {[%clk 0:00:09]} 30. Kg2 {[%clk 0:00:40]}  b5 {[%clk 0:00:09]} 31. f3 {[%clk 0:00:40]}  a5 {[%clk 0:00:08]} 32. fxg4 {[%clk 0:00:40]}  Rg8 {[%clk 0:00:08]} 33. Kf3 {[%clk 0:00:40]}  Rf8 {[%clk 0:00:07]} 34. g5 {[%clk 0:00:40]}  b4 {[%clk 0:00:08]} 35. cxb4 {[%clk 0:00:40]}  axb4 {[%clk 0:00:08]} 36. g6 {[%clk 0:00:36]}  Be7 {[%clk 0:00:07]} 37. Rh1 {[%clk 0:00:33]}  Ra8 {[%clk 0:00:07]} 38. Rh7 {[%clk 0:00:32]}  Kd6 {[%clk 0:00:06]} 39. g7 {[%clk 0:00:21]}  Bf6 {[%clk 0:00:06]} 40. Rh6 {[%clk 0:00:21]}  Ke5 {[%clk 0:00:05]} 41. Bxc6 {[%clk 0:00:15]}  Ra3+ {[%clk 0:00:03]} 42. Kg4 {[%clk 0:00:14]}  Bxg7 {[%clk 0:00:04]} 43. Re6+ {[%clk 0:00:14]}  Kd4 {[%clk 0:00:04]} 44. Rg6 {[%clk 0:00:14]}  Be5 {[%clk 0:00:04]} 45. f6 {[%clk 0:00:13]}  Rxg3+ {[%clk 0:00:04]} 46. Kf5 {[%clk 0:00:13]}  Rxg6 {[%clk 0:00:05]} 47. Kxg6 {[%clk 0:00:14]}  Bxf6 {[%clk 0:00:06]} 48. Kxf6 {[%clk 0:00:15]}  Kc3 {[%clk 0:00:06]} 49. Bd5 {[%clk 0:00:15]}  Kb2 {[%clk 0:00:07]} 50. Bb3 {[%clk 0:00:15]}  Ka3 {[%clk 0:00:07]} 51. Ke5 {[%clk 0:00:16]}  Kb2 {[%clk 0:00:07]} 52. Kd5 {[%clk 0:00:17]}  Ka3 {[%clk 0:00:08]} 53. Kc5 {[%clk 0:00:18]}  Kb2 {[%clk 0:00:09]} 54. Kxb4 {[%clk 0:00:19]}  Ka1 {[%clk 0:00:08]} 55. a4 {[%clk 0:00:20]}  Kb2 {[%clk 0:00:09]} 56. a5 {[%clk 0:00:20]}  Kc1 {[%clk 0:00:09]} 57. a6 {[%clk 0:00:21]}  Kb2 {[%clk 0:00:10]} 58. Ka5 {[%clk 0:00:22]}  Kc1 {[%clk 0:00:11]} 59. Ba4 {[%clk 0:00:23]}  Kb1 {[%clk 0:00:12]} 60. a7 {[%clk 0:00:24]}  Ka2 {[%clk 0:00:12]} 61. Bb5 {[%clk 0:00:25]}  Ka1 {[%clk 0:00:13]} 62. a8=Q {[%clk 0:00:25]}  Ka2 {[%clk 0:00:14]} 63. Qg2+ {[%clk 0:00:26]}  Kb3 {[%clk 0:00:15]} 64. Qf3+ {[%clk 0:00:26]}  Kb2 {[%clk 0:00:16]} 65. Kb4 {[%clk 0:00:26]}  Kb1 {[%clk 0:00:16]} 66. Qf2 {[%clk 0:00:26]}  Ka1 {[%clk 0:00:17]} 67. Kb3 {[%clk 0:00:26]}  Kb1 {[%clk 0:00:17]} 68. Qb2# {[%clk 0:00:27]} 1-0


[Site "https://www.chess.com"]

[Event "Titled Tuesday Blitz December 06 Late 2022"]
[White "Marchesich, Giovanni"]
[Black "Poliakova, Varvara"]
[WhiteFideId "2824790"]
[BlackFideId "13518313"]
[WhiteElo "2200"]
[BlackElo "2075"]
[Result "0-1"]
[Round "08"]
[TimeControl "180+1"]
[Date "2022.12.07"]
[WhiteClock "0:00:10"]
[BlackClock "0:00:55"]

1. d4 {[%clk 0:03:00]}  e5 {[%clk 0:02:53]} 2. e4 {[%clk 0:02:58]}  exd4 {[%clk 0:02:50]} 3. c3 {[%clk 0:02:58]}  d5 {[%clk 0:02:48]} 4. exd5 {[%clk 0:02:56]}  Qxd5 {[%clk 0:02:49]} 5. cxd4 {[%clk 0:02:56]}  Nc6 {[%clk 0:02:47]} 6. Nf3 {[%clk 0:02:56]}  Bg4 {[%clk 0:02:47]} 7. Nc3 {[%clk 0:02:56]}  Bb4 {[%clk 0:02:44]} 8. Be2 {[%clk 0:02:36]}  Bxf3 {[%clk 0:02:40]} 9. Bxf3 {[%clk 0:02:35]}  Qc4 {[%clk 0:02:40]} 10. Bxc6+ {[%clk 0:02:26]}  Qxc6 {[%clk 0:02:40]} 11. Qf3 {[%clk 0:02:12]}  Qxf3 {[%clk 0:02:36]} 12. gxf3 {[%clk 0:02:12]}  O-O-O {[%clk 0:02:36]} 13. Be3 {[%clk 0:02:12]}  Nf6 {[%clk 0:02:31]} 14. Rc1 {[%clk 0:02:12]}  Rhe8 {[%clk 0:02:27]} 15. Ke2 {[%clk 0:02:06]}  Kb8 {[%clk 0:02:22]} 16. Rhg1 {[%clk 0:02:00]}  g6 {[%clk 0:02:20]} 17. Kd3 {[%clk 0:01:59]}  Re6 {[%clk 0:02:16]} 18. Bg5 {[%clk 0:01:57]}  c6 {[%clk 0:02:13]} 19. Ne4 {[%clk 0:01:55]}  Be7 {[%clk 0:01:56]} 20. Rge1 {[%clk 0:01:55]}  Nd5 {[%clk 0:01:54]} 21. Bxe7 {[%clk 0:01:53]}  Rxe7 {[%clk 0:01:54]} 22. Nc5 {[%clk 0:01:49]}  Nf4+ {[%clk 0:01:51]} 23. Kc4 {[%clk 0:01:49]}  b5+ {[%clk 0:01:47]} 24. Kc3 {[%clk 0:01:35]}  Ne2+ {[%clk 0:01:44]} 25. Kb4 {[%clk 0:01:32]}  Rxd4+ {[%clk 0:01:44]} 26. Ka5 {[%clk 0:01:31]}  Kc7 {[%clk 0:01:31]} 27. Rc2 {[%clk 0:01:30]}  Re5 {[%clk 0:01:29]} 28. b3 {[%clk 0:01:02]}  Rdd5 {[%clk 0:01:14]} 29. Na6+ {[%clk 0:00:55]}  Kb7 {[%clk 0:01:12]} 30. Nb4 {[%clk 0:00:56]}  Nd4 {[%clk 0:01:10]} 31. Rxe5 {[%clk 0:00:42]}  Rxe5 {[%clk 0:01:11]} 32. Rd2 {[%clk 0:00:42]}  c5 {[%clk 0:01:07]} 33. Nd3 {[%clk 0:00:41]}  Rd5 {[%clk 0:01:06]} 34. Nxc5+ {[%clk 0:00:41]}  Kc6 {[%clk 0:01:05]} 35. Nd3 {[%clk 0:00:29]}  Kd6 {[%clk 0:00:57]} 36. Ka6 {[%clk 0:00:08]}  Nc6 {[%clk 0:00:57]} 37. Rd1 {[%clk 0:00:06]}  Nb4+ {[%clk 0:00:54]} 38. Nxb4 {[%clk 0:00:06]}  Rxd1 {[%clk 0:00:54]} 39. Kxb5 {[%clk 0:00:06]}  Rh1 {[%clk 0:00:54]} 40. Ka6 {[%clk 0:00:06]}  Rxh2 {[%clk 0:00:53]} 41. Ka5 {[%clk 0:00:05]}  Rxf2 {[%clk 0:00:54]} 42. a4 {[%clk 0:00:06]}  Rxf3 {[%clk 0:00:53]} 43. Ka6 {[%clk 0:00:07]}  Rxb3 {[%clk 0:00:53]} 44. Kxa7 {[%clk 0:00:08]}  Rxb4 {[%clk 0:00:54]} 45. a5 {[%clk 0:00:09]}  Ra4 {[%clk 0:00:54]} 46. a6 {[%clk 0:00:10]}  Rxa6+ {[%clk 0:00:54]} 47. Kxa6 {[%clk 0:00:10]}  h5 {[%clk 0:00:55]} 0-1


[Site "https://www.chess.com"]

[Event "Titled Tuesday Blitz December 06 Late 2022"]
[White "Martin Carmona, Gaston Manuel"]
[Black "Souleidis, Georgios"]
[WhiteFideId "22284567"]
[BlackFideId "4206827"]
[WhiteElo "2494"]
[BlackElo "2621"]
[Result "1/2-1/2"]
[Round "08"]
[TimeControl "180+1"]
[Date "2022.12.07"]
[WhiteClock "0:00:22"]
[BlackClock "0:00:16"]

1. e4 {[%clk 0:03:00]}  c5 {[%clk 0:02:53]} 2. Nf3 {[%clk 0:03:01]}  e6 {[%clk 0:02:53]} 3. d4 {[%clk 0:03:01]}  cxd4 {[%clk 0:02:54]} 4. Nxd4 {[%clk 0:03:02]}  Nf6 {[%clk 0:02:54]} 5. Nc3 {[%clk 0:03:02]}  Nc6 {[%clk 0:02:55]} 6. Ndb5 {[%clk 0:02:59]}  Bc5 {[%clk 0:02:53]} 7. Bf4 {[%clk 0:02:48]}  O-O {[%clk 0:02:53]} 8. Bc7 {[%clk 0:02:41]}  Qe7 {[%clk 0:02:53]} 9. Bd6 {[%clk 0:02:42]}  Bxd6 {[%clk 0:02:53]} 10. Qxd6 {[%clk 0:02:38]}  Qd8 {[%clk 0:02:53]} 11. Qc7 {[%clk 0:02:35]}  d5 {[%clk 0:02:51]} 12. Qxd8 {[%clk 0:02:26]}  Rxd8 {[%clk 0:02:52]} 13. exd5 {[%clk 0:02:22]}  exd5 {[%clk 0:02:48]} 14. O-O-O {[%clk 0:02:21]}  d4 {[%clk 0:02:30]} 15. Ne2 {[%clk 0:02:20]}  Ne4 {[%clk 0:02:21]} 16. Rg1 {[%clk 0:02:04]}  Nxf2 {[%clk 0:02:21]} 17. Rd2 {[%clk 0:02:02]}  Ne4 {[%clk 0:02:01]} 18. Rd3 {[%clk 0:02:01]}  Nc5 {[%clk 0:01:53]} 19. Rd2 {[%clk 0:01:57]}  Ne6 {[%clk 0:01:47]} 20. Ng3 {[%clk 0:01:47]}  a6 {[%clk 0:01:46]} 21. Na3 {[%clk 0:01:48]}  b5 {[%clk 0:01:43]} 22. Bd3 {[%clk 0:01:48]}  Bb7 {[%clk 0:01:33]} 23. Rf1 {[%clk 0:01:43]}  Rac8 {[%clk 0:01:30]} 24. Nf5 {[%clk 0:01:41]}  Rc7 {[%clk 0:01:17]} 25. Rdf2 {[%clk 0:01:34]}  Ne5 {[%clk 0:01:16]} 26. Kd2 {[%clk 0:01:32]}  g6 {[%clk 0:01:02]} 27. Ng3 {[%clk 0:01:28]}  Ng4 {[%clk 0:00:58]} 28. Re2 {[%clk 0:01:27]}  Ne3 {[%clk 0:00:57]} 29. Rff2 {[%clk 0:01:18]}  Nc4+ {[%clk 0:00:51]} 30. Nxc4 {[%clk 0:01:15]}  bxc4 {[%clk 0:00:52]} 31. Be4 {[%clk 0:01:15]}  c3+ {[%clk 0:00:47]} 32. Kc1 {[%clk 0:01:14]}  Kg7 {[%clk 0:00:34]} 33. b3 {[%clk 0:00:42]}  Nc5 {[%clk 0:00:31]} 34. Bxb7 {[%clk 0:00:42]}  Rxb7 {[%clk 0:00:32]} 35. Re5 {[%clk 0:00:41]}  Rc7 {[%clk 0:00:32]} 36. Ne4 {[%clk 0:00:37]}  Nxe4 {[%clk 0:00:30]} 37. Rxe4 {[%clk 0:00:38]}  Rcd7 {[%clk 0:00:31]} 38. Rf3 {[%clk 0:00:36]}  f5 {[%clk 0:00:30]} 39. Re6 {[%clk 0:00:35]}  Rd6 {[%clk 0:00:27]} 40. Rxd6 {[%clk 0:00:35]}  Rxd6 {[%clk 0:00:27]} 41. Rd3 {[%clk 0:00:35]}  Kf6 {[%clk 0:00:27]} 42. Kd1 {[%clk 0:00:35]}  Ke5 {[%clk 0:00:28]} 43. Ke2 {[%clk 0:00:36]}  f4 {[%clk 0:00:28]} 44. Rh3 {[%clk 0:00:35]}  Rd7 {[%clk 0:00:26]} 45. Kd3 {[%clk 0:00:36]}  Kf5 {[%clk 0:00:26]} 46. Rf3 {[%clk 0:00:34]}  g5 {[%clk 0:00:25]} 47. Rf1 {[%clk 0:00:35]}  a5 {[%clk 0:00:25]} 48. a3 {[%clk 0:00:35]}  h5 {[%clk 0:00:24]} 49. b4 {[%clk 0:00:35]}  axb4 {[%clk 0:00:24]} 50. axb4 {[%clk 0:00:36]}  Rb7 {[%clk 0:00:24]} 51. Rb1 {[%clk 0:00:36]}  Ke5 {[%clk 0:00:24]} 52. b5 {[%clk 0:00:35]}  Kd5 {[%clk 0:00:24]} 53. b6 {[%clk 0:00:35]}  g4 {[%clk 0:00:23]} 54. Rb5+ {[%clk 0:00:34]}  Kc6 {[%clk 0:00:23]} 55. Rxh5 {[%clk 0:00:34]}  Kxb6 {[%clk 0:00:21]} 56. Kxd4 {[%clk 0:00:35]}  Rf7 {[%clk 0:00:20]} 57. Re5 {[%clk 0:00:27]}  f3 {[%clk 0:00:21]} 58. gxf3 {[%clk 0:00:27]}  Rxf3 {[%clk 0:00:17]} 59. Rg5 {[%clk 0:00:23]}  Rh3 {[%clk 0:00:16]} 60. Rxg4 {[%clk 0:00:21]}  Rxh2 {[%clk 0:00:16]} 61. Kxc3 {[%clk 0:00:22]}  Kc5 {[%clk 0:00:17]} 62. Rg5+ {[%clk 0:00:22]}  Kc6 {[%clk 0:00:17]} 63. Kb4 {[%clk 0:00:22]}  Rxc2 {[%clk 0:00:16]} 1/2-1/2


[Site "https://www.chess.com"]

[Event "Titled Tuesday Blitz December 06 Late 2022"]
[White "Matinian, Nikita"]
[Black "Sarana, Alexey"]
[WhiteFideId "24129100"]
[BlackFideId "24133795"]
[WhiteElo "2422"]
[BlackElo "2708"]
[Result "0-1"]
[Round "08"]
[TimeControl "180+1"]
[Date "2022.12.06"]
[WhiteClock "0:00:01"]
[BlackClock "0:00:09"]

1. e4 {[%clk 0:03:00]}  c5 {[%clk 0:03:00]} 2. Nf3 {[%clk 0:03:01]}  d6 {[%clk 0:03:01]} 3. d4 {[%clk 0:03:00]}  cxd4 {[%clk 0:03:01]} 4. Nxd4 {[%clk 0:03:01]}  Nf6 {[%clk 0:03:02]} 5. Nc3 {[%clk 0:03:02]}  a6 {[%clk 0:03:03]} 6. Be2 {[%clk 0:03:03]}  e5 {[%clk 0:03:03]} 7. Nb3 {[%clk 0:03:02]}  Be7 {[%clk 0:03:04]} 8. g4 {[%clk 0:02:57]}  h6 {[%clk 0:03:00]} 9. Be3 {[%clk 0:02:54]}  Be6 {[%clk 0:03:00]} 10. h4 {[%clk 0:02:51]}  Nbd7 {[%clk 0:03:00]} 11. Rg1 {[%clk 0:02:48]}  Nh7 {[%clk 0:03:00]} 12. g5 {[%clk 0:02:33]}  hxg5 {[%clk 0:03:00]} 13. Nd5 {[%clk 0:02:34]}  gxh4 {[%clk 0:02:55]} 14. Rxg7 {[%clk 0:02:26]}  h3 {[%clk 0:02:55]} 15. Qd2 {[%clk 0:02:19]}  h2 {[%clk 0:02:49]} 16. O-O-O {[%clk 0:02:11]}  Nhf6 {[%clk 0:02:44]} 17. Bf3 {[%clk 0:02:12]}  Bxd5 {[%clk 0:02:41]} 18. exd5 {[%clk 0:02:12]}  e4 {[%clk 0:02:41]} 19. Bh1 {[%clk 0:02:08]}  Ne5 {[%clk 0:02:42]} 20. Nd4 {[%clk 0:02:04]}  Rc8 {[%clk 0:02:40]} 21. Kb1 {[%clk 0:02:03]}  Qd7 {[%clk 0:02:29]} 22. b3 {[%clk 0:01:46]}  Nxd5 {[%clk 0:02:26]} 23. c4 {[%clk 0:01:42]}  Bf6 {[%clk 0:02:02]} 24. Rg3 {[%clk 0:01:29]}  Nxc4 {[%clk 0:01:08]} 25. bxc4 {[%clk 0:01:11]}  Rxc4 {[%clk 0:01:09]} 26. Rc1 {[%clk 0:00:51]}  Nxe3 {[%clk 0:00:22]} 27. fxe3 {[%clk 0:00:52]}  Rxc1+ {[%clk 0:00:21]} 28. Kxc1 {[%clk 0:00:43]}  d5 {[%clk 0:00:22]} 29. Rg2 {[%clk 0:00:33]}  Be5 {[%clk 0:00:21]} 30. Rg5 {[%clk 0:00:12]}  f6 {[%clk 0:00:21]} 31. Rg2 {[%clk 0:00:11]}  Kf7 {[%clk 0:00:21]} 32. Kb1 {[%clk 0:00:10]}  Bxd4 {[%clk 0:00:17]} 33. Qxd4 {[%clk 0:00:05]}  Qb5+ {[%clk 0:00:17]} 34. Rb2 {[%clk 0:00:01]}  Qf1+ {[%clk 0:00:17]} 35. Kc2 {[%clk 0:00:01]}  Rc8+ {[%clk 0:00:16]} 36. Kb3 {[%clk 0:00:01]}  Qb5+ {[%clk 0:00:09]} 37. Ka3 {[%clk 0:00:02]}  Qa5+ {[%clk 0:00:09]} 38. Kb3 {[%clk 0:00:02]}  Rc4 {[%clk 0:00:09]} 39. Qd2 {[%clk 0:00:01]}  Qa4# {[%clk 0:00:09]} 0-1


[Site "https://www.chess.com"]